{"text_format":"1","workbook":"xlsx","n_sheets":8,"sheets":["1 LES ADHERENTS","2 COTISATIONS ANNUELLES","3 RESSOUCES HUMAINES","4 SUBVENTIONS PARTENARIATS","5 INNOVATION","6 APPUI AU SECTEUR ASSOCIATIF ","7 RESEAU","données"],"not_rendered":{"charts":0,"images":0,"macros":0,"external_links":0,"defined_names":0,"comments":0,"pivot_tables":0},"unopened":[],"bounds":{"document_bytes":16777216,"sheet_cells":100000,"rows_first":2000,"rows_last":500,"rows_between":2000,"halvings":0,"cell_chars":16384,"cell_head_chars":4096},"cells_cut":0,"cells_raw":0,"read":"whole","date_system":"1900"}

{"sheet":"1 LES ADHERENTS","index":0,"n_rows":19,"n_cols":2,"rows_kept":19,"cut":false,"hidden":false,"merged":[]}
["1 ADHERENTS DE L'ASSOCIATION "]
[]
["Veuillez remplir les cellules bleues"]
[]
["Nombres d'adhérents tarbais"]
["Nombre d'adhérents non- tarbais"]
["Nombre total d'adhérents",{"$f":"SUM(B5:B6)","v":0}]
[]
["CATEGORIE DES ADHERENTS"]
[]
["Un même adhérent ne doit figurer que dans une seule catégorie"]
[]
["- de 13 ans"]
["de 13 à 18 ans"]
["de 18 à 60 ans"]
["plus de 60 ans"]
["adultes de sexe féminin"]
["Personnes handicapées"]
["Nombre total d'adhérents",{"$f":"SUM(B13:B18)","v":0}]

{"sheet":"2 COTISATIONS ANNUELLES","index":1,"n_rows":15,"n_cols":4,"rows_kept":15,"cut":false,"hidden":false,"merged":[[12,0,12,1],[14,0,14,3],[15,0,18,3]]}
["2 COTISATIONS ANNUELLES"]
[]
["Remplir les cellules bleues"]
["Vous pouvez rajouter des lignes si nécessaire"]
[]
["Types de cotisations (adultes, enfants, sociales….)","Montant de la cotisation ","Nombre d'adhérents","Total des adhésions"]
[null,0,null,{"$f":"B7*C7","v":0}]
[null,0,null,0]
[null,0,null,0]
[null,0,null,0]
[null,0,null,0]
[null,0,null,0]
["TOTAL ",null,{"$f":"SUM(C7:C12)","v":0},{"$f":"SUM(D7:D12)","v":0}]
[]
["Si un un tarif social est mis en place, merci de précisez les conditions : "]

{"sheet":"3 RESSOUCES HUMAINES","index":2,"n_rows":19,"n_cols":8,"rows_kept":19,"cut":false,"hidden":false,"merged":[[0,0,0,5],[6,7,10,9],[18,4,19,4],[18,7,19,9]]}
["4 RESSOURCES HUMAINES"]
[]
["Remplir les cellules bleues"]
[]
["LES EMPLOIS"]
[]
["Type d'emplois","Nombre","Montant annuel des salaires","Montant annuel des charges","Montant annuel des aides (hors sub ordinaire)","montant net à la charge de l'association",null,"Pensez à joindre :\n - la déclaration annuelle des salaires ; \n- les conventions de msie à disposition de personnel à titre onéreux\n"]
["CDD à temps plein",null,null,null,null,{"$f":"(C8+D8)-E8","v":0}]
["CDD à temps partiel",null,null,null,null,{"$f":"(C9+D9)-E9","v":0}]
["CDI à temps plein",null,null,null,null,0]
["CDI à temps partiel",null,null,null,null,0]
["CUI CAE",null,null,null,null,0]
["Personnel mis à disposition à titre onereux",null,null,null,null,0]
["Autres forme de contrat\nPrécisez : ",null,null,null,null,0]
["TOTAL",{"$f":"SUM(B8:B14)","v":0},{"$f":"SUM(C8:C14)","v":0},{"$f":"SUM(D8:D14)","v":0},{"$f":"SUM(E8:E14)","v":0},{"$f":"SUM(F8:F14)","v":0}]
[]
["LE BENEVOLAT"]
[]
[null,null,null,null,"Valorisation du bénévolat","Montant",null,"Pensez à joindre les calculs de la valorisation du bénévolat"]

{"sheet":"4 SUBVENTIONS PARTENARIATS","index":3,"n_rows":28,"n_cols":3,"rows_kept":28,"cut":false,"hidden":false,"merged":[[4,0,4,2],[0,0,0,2]]}
["11 SUBVENTIONS ET PARTENARIATS 2020"]
[]
["Remplir les cellules bleues"]
[]
["RAPPEL DU TOTAL DES RECETTES DE L'EXERCICE 2020 :"]
[]
["Les financeurs publics sont les collectivités territoriales, états, fédérations, etc..."]
["Pour la RAISON, cliquez sur la cellule pour faire apparaître la liste déroulante"]
[]
["FINANCEURS PUBLICS","MONTANT","RAISON"]
[]
[]
[]
[]
[]
[]
["TOTAL",{"$f":"SUM(B11:B16)","v":0}]
[]
["Les partenaires sont les structures privées participant aux recettes (mécénat, sponsors, etc…)"]
[]
["PARTENAIRES PRIVES","MONTANT"]
[]
[]
[]
[]
[]
[]
["TOTAL",{"$f":"SUM(B22:B27)","v":0}]

{"sheet":"5 INNOVATION","index":4,"n_rows":25,"n_cols":3,"rows_kept":25,"cut":false,"hidden":false,"merged":[[13,0,13,7],[16,0,20,7],[22,0,22,7],[25,0,29,7],[0,0,0,2],[4,0,4,7],[7,0,11,7]]}
["5 CARACTERE INNOVANT DE L'ACTION"]
[]
["Remplir les cellules bleues"]
[]
[" Cette action est-elle nouvelle ou existait-elle déjà sur le territoire?"]
["oui",null,"non"]
["Précisez : "]
[]
[]
[]
[]
[]
[]
["Cette action accompagne-t-elle l'utilisation de nouvelles technologies (nmérique, par exemple)?"]
["oui",null,"non"]
["Précisez : "]
[]
[]
[]
[]
[]
[]
["Cette action permet-elle de mettre en synergie des dispositifs déjà existants notamment en matière de collaboration inter-structures?"]
["oui",null,"non"]
["Précisez : "]

{"sheet":"6 APPUI AU SECTEUR ASSOCIATIF ","index":5,"n_rows":25,"n_cols":3,"rows_kept":25,"cut":false,"hidden":false,"merged":[[22,0,22,7],[25,0,29,7],[0,0,0,4],[4,0,4,7],[7,0,11,7],[13,0,13,7],[16,0,20,7]]}
["6 COORDINATION ET APPUI AU SECTEUR ASSOCIATIF"]
[]
["Remplir les cellules bleues"]
[]
["La structure assuret-elle des prestations de formation pour d'autres associations?"]
["oui",null,"non"]
["Précisez : "]
[]
[]
[]
[]
[]
[]
["La structure assuret-elle des fonctions d'appui pour les autres associations notamment concernant l'aide aux réponses aux Appel à Manifestation d'Intérêt (AMI) et aux Appels à Projet (AAP)?"]
["oui",null,"non"]
["Précisez : "]
[]
[]
[]
[]
[]
[]
["La structure anime-t-il des rencontres ou des échanges de pratiques ouvertes aux autres associations?"]
["oui",null,"non"]
["Précisez : "]

{"sheet":"7 RESEAU","index":6,"n_rows":16,"n_cols":3,"rows_kept":16,"cut":false,"hidden":false,"merged":[[0,0,0,4],[4,0,4,7],[7,0,11,7],[13,0,13,7],[16,0,20,7]]}
["7 IMPLICATION DANS LES RESEAUX"]
[]
["Remplir les cellules bleues"]
[]
["L'association fait-elle partie d'une fédération nationale ou régionale?"]
["oui",null,"non"]
["Précisez : "]
["Association nationale des Restos du Cœur"]
[]
[]
[]
[]
[]
["L'association adhère-t-elle à d'autres associations ou fédérations?"]
["oui",null,"non"]
["Précisez : "]

{"sheet":"données","index":7,"n_rows":35,"n_cols":12,"rows_kept":35,"cut":false,"hidden":true,"merged":[[11,1,11,4],[12,1,13,1],[12,2,12,4],[14,0,17,0],[18,0,21,0],[22,0,25,0],[26,0,29,0],[30,0,33,0],[34,0,37,0],[11,0,13,0]]}
[null,"âge","niveau :",null,"DIVISEUR",null,null,null,null,0]
[null,"senior","Pro",null,1,null,null,"1er",null,1,null,0]
[null,"U23","National",null,1.5,null,null,"2ème",null,2,null,20]
[null,"U20","Régional",null,2,null,null,"3ème",null,3]
[null,"U18","Département",null,2.5,null,null,"4ème",null,4]
[null,"U16",null,null,3,null,null,"5ème",null,5]
[null,"U14",null,null,3.5,null,null,"6ème",null,6]
[null,null,null,null,4,null,null,"7ème",null,7]
[null,null,null,null,null,null,null,"8ème",null,8]
[null,null,null,null,null,null,null,null,null,9]
[]
["catégorie","niveau de championnat"]
[null,"PRO","AMATEUR",null,null,null,null,"âge :","niveau : "]
[null,null,"National","Régional","Départemental",null,null,"senior","1er national (monde)",null,null,"ordinaire"]
["Sénior",null,null,null,null,null,null,"U23","2ème national (europe)",null,null,"exceptionelle"]
[null,null,null,null,null,null,null,"U20","3ème national (France)",null,null,"équipement"]
[null,null,null,null,null,null,null,"U18","régional",null,null,"aide à l'emploi"]
[null,null,null,null,null,null,null,"U16","départemental"]
["U23",null,null,null,null,null,null,"U14"]
[]
[]
[]
["U20"]
[]
[]
[]
["U18"]
[]
[]
[]
["U16"]
[]
[]
[]
["U14"]